Workbook

Sheet Data Control
A2: Sales Represntatives | B2: Cancellation Reason Code | C2: Campaigns
A3: Al Michalchuk | B3: Collections / Non Payment | C3: Alarm.com Lead
A4: Hailey Litchfield | B4: Show Home | C4: Brookfield Customer (Sold)
A5: Jared Steed | B5: Move Outside Canada | C5: Brookfield Show Home
A6: Justin De Rush | B6: Move Within Canada | C6: Customer Referral
A7: Lisa Schwager | B7: Deceased | C7: Door to Door
A8: Nathan Baldry | B8: Competitor Switchover | C8: DTD - Family & Friends
A9: Pat Kickham | B9: No Perceived Value | C9: Employee Referral
A10: Russell Keddie | B10: Pull Equipment / Rip-Out | C10: Family/Friends
A11: Sarah Depew | B11: Closed Business | C11: Homeshow
A12: Taylor Wolsey | B12: Moved HOUSE to PTRON | C12: Homexx Show Home
A13: Troy Cole | B13: Retirement Home | C13: HOUSE - Move Outside (1) Year
A14: D2D Accounts | B14: J&J Northstar | C14: HOUSE - Move Within (1) Year
A15: J&J Northstar Accounts | C15: HOUSE - Takeover Outside (1) Year
C16: HOUSE - Takeover Within (1) Year
C17: HouseMaster
C18: Insure Your Way Inc.
C19: InterNet Search
C20: J&J Northstar HOUSE Accounts
C21: Landmark Customers (Sold)
C22: Landmark Employee
C23: Landmark Show Home - Calgary
C24: Landmark Show Home - Edmonton
C25: Liberty Security Website
C26: Meadows Park Project
C27: PERS Customer Accounts
C28: Self Generated
C29: Twilite Music
C30: UrbanAge Show Home

Sheet Summary Results
A2: SUMMARY RESULT OF HOUSE ACCOUNTS REVIEW:
A3: Created 02/12/2013
A5: LIBERTY SECURITY ACCOUNTS OVERVIEW:
B7: 2014-12-13 | C7: 2014-01-01 | D7: 2014-02-01
A8: Opening Balance | B8: 1253 | C8: =B13 -> 1279 | D8: =C13 -> 1319
A9: Customer Account Cancellations | B9: 6 | C9: 5 | D9: 0
A10: Show Home Cancellations | B10: 2 | C10: 1 | D10: 0
A11: Sub Total of Active HOUSE Accounts | B11: =B8-B9-B10 -> 1245 | C11: =C8-C9-C10 -> 1273 | D11: =D8-D9-D10 -> 1319
A12: New Active HOUSE Accounts | B12: 34 | C12: 46 | D12: 13
A13: Total Active HOUSE Accuonts | B13: =B11+B12 -> 1279 | C13: =C11+C12 -> 1319 | D13: =D11+D12 -> 1332
A15: J&J NORTHSTAR ACCOUNTS OVERVIEW:
B17: 2013-12-01 | C17: 2014-01-01 | D17: 2014-02-14
A18: Opening Balance | B18: 146 | C18: =B21 -> 146 | D18: =C21 -> 145
A19: J&J Customer Account Cancellations | B19: 0 | C19: 1 | D19: 1
A20: J&J New Active HOUSE Accounts | B20: 0 | C20: 0 | D20: 0
A21: Total Active J&J HOUSE Accuonts | B21: =B18-B19+B20 -> 146 | C21: =C18-C19+C20 -> 145 | D21: =D18-D19+D20 -> 144
A23: SHOW HOME ACCOUNTS OVERVIEW:
B25: 2014-12-13 | C25: 2014-01-14 | D25: 2014-02-14
A26: *Artisan Homes | B26: 1 | C26: 1 | D26: 1
A27: **Brookfield Homes | B27: 22 | C27: 22 | D27: 22
A28: *Homexx Homes | B28: 2 | C28: 3 | D28: 3
A29: **Jaya Homes | B29: 1 | C29: 1 | D29: 1
A30: *Landmark Homes | B30: 42 | C30: 41 | D30: 41
A31: *UrbanAge Homes | B31: 1 | C31: 1 | D31: 0
A32: Total Active Show Home Accounts | B32: =SUM(B26:B31) -> 69 | C32: 69 | D32: =SUM(D26:D31) -> 68
A33: *Free Monitoring Show Homes
A34: **Paying Monitoring Show Homes
A36: OVERALL HOUSE ACCOUNT OVERVIEW:
B38: 2013-12-01 | C38: 2014-01-01 | D38: 2014-02-01 | E38: Running Totals
A39: Opening Balance | B39: =B8+B18 -> 1399 | C39: =C8+C18 -> 1425 | D39: =C42 -> 1464
A40: Total Customer Account Cancellations | B40: =B9+B10+B19 -> 8 | C40: =C9+C10+C19 -> 7 | D40: =D9+D10+D19 -> 1 | E40: =SUM($B40:D40) -> 16
A41: Total NEW Active HOUSE Accounts | B41: =B12+B20 -> 34 | C41: =C12+C20 -> 46 | D41: =D12+D20 -> 13 | E41: =SUM($B41:D41) -> 93
A42: Total Active HOUSE Accounts | B42: =B39-B40+B41 -> 1425 | C42: =C39-C40+C41 -> 1464 | D42: =D39-D40+D41 -> 1476 | E42: =E39-E40+E41 -> 77
A45: Sales Results Based on Campaign Breakdown:
A47: Campaign | B47: 2013-12-01 | C47: 2014-01-01 | D47: 2014-02-01 | E47: Running Totals
A48: Alarm.com Lead | B48: 0 | C48: 0 | D48: 1 | E48: =SUM($B48:D48) -> 1
A49: Brookfield Customer (Sold) | B49: 0 | C49: 0 | D49: 0 | E49: =SUM($B49:D49) -> 0
A50: Brookfield Show Home | B50: 0 | C50: 1 | D50: 3 | E50: =SUM($B50:D50) -> 4
A51: Customer Referral | B51: 3 | C51: 4 | D51: 0 | E51: =SUM($B51:D51) -> 7
A52: Door to Door | B52: 5 | C52: 7 | D52: 5 | E52: =SUM($B52:D52) -> 17
A53: DTD - Family & Friends | B53: 0 | C53: 0 | D53: 4 | E53: =SUM($B53:D53) -> 4
A54: Employee Referral | B54: 0 | C54: 1 | D54: 0 | E54: =SUM($B54:D54) -> 1
A55: Family/Friends | B55: 3 | C55: 3 | D55: 3 | E55: =SUM($B55:D55) -> 9
A56: Homeshow | B56: 0 | C56: 2 | D56: 0 | E56: =SUM($B56:D56) -> 2
A57: Homexx Show Home | B57: 0 | C57: 0 | D57: 1 | E57: =SUM($B57:D57) -> 1
A58: HOUSE - Move Outside (1) Year | B58: 0 | C58: 0 | D58: 0 | E58: =SUM($B58:D58) -> 0
A59: HOUSE - Move Within (1) Year | B59: 0 | C59: 0 | D59: 1 | E59: =SUM($B59:D59) -> 1
A60: HOUSE - Takeover Outside (1) Year | B60: 0 | C60: 0 | D60: 2 | E60: =SUM($B60:D60) -> 2
A61: HOUSE - Takeover Within (1) Year | B61: 0 | C61: 0 | D61: 0 | E61: =SUM($B61:D61) -> 0
A62: HouseMaster | B62: 0 | C62: 0 | D62: 1 | E62: =SUM($B62:D62) -> 1
A63: Insure Your Way Inc. | B63: 0 | C63: 0 | D63: 0 | E63: =SUM($B63:D63) -> 0
A64: InterNet Search | B64: 4 | C64: 3 | D64: 4 | E64: =SUM($B64:D64) -> 11
A65: J&J Northstar HOUSE Accounts | B65: 0 | C65: 0 | D65: 0 | E65: =SUM($B65:D65) -> 0
A66: Landmark Customers (Sold) | B66: 0 | C66: 5 | D66: 1 | E66: =SUM($B66:D66) -> 6
A67: Landmark Employee | B67: 2 | C67: 1 | D67: 0 | E67: =SUM($B67:D67) -> 3
A68: Landmark Show Home - Calgary | B68: 0 | C68: 0 | D68: 0 | E68: =SUM($B68:D68) -> 0
A69: Landmark Show Home - Edmonton | B69: 3 | C69: 0 | D69: 2 | E69: =SUM($B69:D69) -> 5
A70: Liberty Security Website | B70: 0 | C70: 0 | D70: 0 | E70: =SUM($B70:D70) -> 0
A71: Meadows Park Project | B71: 4 | C71: 2 | D71: 2 | E71: =SUM($B71:D71) -> 8
A72: PERS Customer Accounts | B72: 1 | C72: 1 | D72: 0 | E72: =SUM($B72:D72) -> 2
A73: Self Generated | B73: 9 | C73: 16 | D73: 11 | E73: =SUM($B73:D73) -> 36
A74: Twilite Music | B74: 0 | C74: 0 | D74: 0 | E74: =SUM($B74:D74) -> 0
A75: UrbanAge Show Home | B75: 0 | C75: 0 | D75: 0 | E75: =SUM($B75:D75) -> 0
A76: Total Add HOUSE Accounts | B76: =SUM(B48:B75) -> 34 | C76: =SUM(C48:C75) -> 46 | D76: =SUM(D48:D75) -> 41 | E76: =SUM(E48:E75) -> 121
A78: Sales Results Based on Sales Representative Breakdown:
A80: Sales Representative Name | B80: 2013-12-01 | C80: 2014-01-01 | D80: 2014-02-01 | E80: Running Totals
A81: Al Michalchuk | B81: 5 | C81: 2 | D81: 2 | E81: =SUM($B81:D81) -> 9
A82: Hailey Litchfield | B82: 0 | C82: 0 | D82: 1 | E82: =SUM($B82:D82) -> 1
A83: Jared Steed | B83: 6 | C83: 11 | D83: 9 | E83: =SUM($B83:D83) -> 26
A84: Justin De Rush | B84: 4 | C84: 14 | D84: 6 | E84: =SUM($B84:D84) -> 24
A85: Lisa Schwager | B85: 0 | C85: 2 | D85: 5 | E85: =SUM($B85:D85) -> 7
A86: Nathan Baldry | B86: 0 | C86: 0 | D86: 8 | E86: =SUM($B86:D86) -> 8
A87: Pat Kickham | B87: 0 | C87: 0 | D87: 0 | E87: =SUM($B87:D87) -> 0
A88: Russell Keddie | B88: 3 | C88: 0 | D88: 2 | E88: =SUM($B88:D88) -> 5
A89: Sarah Depew | B89: 0 | C89: 0 | D89: 4 | E89: =SUM($B89:D89) -> 4
A90: Taylor Wolsey | B90: 1 | C90: 0 | D90: 1 | E90: =SUM($B90:D90) -> 2
A91: Troy Cole | B91: 6 | C91: 8 | D91: 2 | E91: =SUM($B91:D91) -> 16
A92: D2D Accounts | B92: 9 | C92: 9 | D92: 3 | E92: =SUM($B92:D92) -> 21
A93: J&J Northstar Accounts | B93: 0 | C93: 0 | D93: 0 | E93: =SUM($B93:D93) -> 0
A94: Totals | B94: =SUM(B81:B93) -> 34 | C94: =SUM(C81:C93) -> 46 | D94: =SUM(D81:D93) -> 43 | E94: =SUM(E81:E93) -> 123
A96: Cancellation Reasons - Running Results:
A98: Cancellation Reason Code | B98: 2013-12-01 | C98: 2014-01-01 | D98: 2014-02-01 | E98: Running Totals
A99: Collections / Non Payment | B99: 0 | C99: 0 | D99: 1 | E99: =SUM($B99:D99) -> 1
A100: Show Home | B100: 2 | C100: 1 | D100: 2 | E100: =SUM($B100:D100) -> 5
A101: Move Outside Canada | B101: 0 | C101: 0 | D101: 1 | E101: =SUM($B101:D101) -> 1
A102: Move Within Canada | B102: 3 | C102: 2 | D102: 0 | E102: =SUM($B102:D102) -> 5
A103: Deceased | B103: 0 | C103: 0 | D103: 0 | E103: =SUM($B103:D103) -> 0
A104: Competitor Switchover | B104: 2 | C104: 1 | D104: 0 | E104: =SUM($B104:D104) -> 3
A105: No Perceived Value | B105: 1 | C105: 2 | D105: 1 | E105: =SUM($B105:D105) -> 4
A106: Pull Equipment / Rip-Out | B106: 0 | C106: 0 | D106: 0 | E106: =SUM($B106:D106) -> 0
A107: Closed Business | B107: 0 | C107: 0 | D107: 1 | E107: =SUM($B107:D107) -> 1
A108: Moved HOUSE to PTRON | B108: 0 | C108: 0 | D108: 2 | E108: =SUM($B108:D108) -> 2
A109: Retirement Home | B109: 0 | C109: 0 | D109: 1 | E109: =SUM($B109:D109) -> 1
A110: J&J Northstar | B110: 0 | C110: 1 | D110: 0 | E110: =SUM($B110:D110) -> 1
A111: Total Monthly Cancellations | B111: =SUM(B99:B110) -> 8 | C111: =SUM(C99:C110) -> 7 | D111: =SUM(D99:D110) -> 9 | E111: =SUM(E99:E110) -> 24
